[Event "WYCC 2018 O16"]
[Site "Halkidiki"]
[Date "2018.10.20"]
[Round "1"]
[White "Sankalp Gupta"]
[Black "Aravena Navarro, Alexis Andres"]
[Result "1-0"]
[ECO "A46"]
[WhiteElo "2352"]
[BlackElo "1970"]
[Annotator "NA"]
[PlyCount "93"]
[EventDate "2018.10.20"]
[EventType "swiss"]
[EventCountry "GRE"]
[SourceTitle "playchess.com"]
[Source "ChessBase"]
[SourceQuality "1"]
[TimeControl "40/5400+30:1800+30"]

1. d4 {[%emt 0:00:00]} Nf6 {[%emt 0:00:00]} 2. Nf3 {[%emt 0:00:00]} e6 {[%emt 0:00:12]} 3. Bf4 {[%emt 0:00:00]} b6 {[%emt 0:00:14]} 4. e3 {[%emt 0:00:01]} Bb7 {[%emt 0:00:26]} 5. Bd3 {[%emt 0:00:59]} d6 {[%emt 0:00:13]} 6. O-O {[%emt 0:01:09]} Nbd7 {[%emt 0:00:30]} 7. h3 {[%emt 0:01:21]} Qe7 {[%emt 0:00:21]} 8. Bh2 {[%emt 0:06:44]} e5 {[%emt 0:00:56]} 9. dxe5 {[%emt 0:09:41]} dxe5 {[%emt 0:00:24]} 10. Bc4 {[%emt 0:00:11]} Qc5 {[%emt 0:10:43]} 11. Nbd2 {[%emt 0:06:04]} Bd6 {[%emt 0:11:29]} 12. e4 $11 {[%emt 0:18:35]} O-O {[%emt 0:08:17]} 13. Qe2 {[%emt 0:00:36]} a6 {[%emt 0:13:51]} 14. a4 {[%emt 0:02:47]} Rfe8 {[%emt 0:09:30]} 15. Ng5 {[%emt 0:06:59]} Re7 {[%emt 0:00:10]} 16. Nb3 {[%emt 0:00:11]} Qc6 {[%emt 0:00:01]} 17. Bb5 {[%emt 0:01:19]} axb5 {[%emt 0:05:45]} 18. axb5 {[%emt 0:00:03]} Ba6 {[%emt 0:00:15]} 19. bxc6 {[%emt 0:09:57]} Bxe2 {[%emt 0:00:10]} 20. Rxa8+ {[%emt 0:00:03]} Nf8 {[%emt 0:00:14]} 21. Re1 {[%emt 0:03:08]} Bb5 {[%emt 0:01:06]} 22. Nd2 {[%emt 0:00:10]} h6 {[%emt 0:02:53]} 23. Ngf3 {[%emt 0:00:11]} Bxc6 {[%emt 0:00:04]} 24. Rd8 {[%emt 0:01:37]} Re6 {[%emt 0:09:20]} 25. Nc4 {[%emt 0:07:44]} Bxe4 {[%emt 0:13:33]} 26. Ncxe5 {[%emt 0:03:33]} Bb4 {[%emt 0:07:42]} 27. c3 {[%emt 0:01:24]} Be7 {[%emt 0:02:14]} 28. Rdd1 {[%emt 0:00:18]} c5 {[%emt 0:00:24]} 29. Nd2 {[%emt 0:01:57]} Bc2 {[%emt 0:00:01]} 30. Rc1 {[%emt 0:00:23]} Ba4 {[%emt 0:00:04]} 31. Nec4 {[%emt 0:00:39]} b5 {[%emt 0:00:17]} 32. Rxe6 {[%emt 0:00:07]} Nxe6 {[%emt 0:00:01]} 33. Nb6 {[%emt 0:00:13]} Bd8 {[%emt 0:00:10]} 34. Nxa4 bxa4 35. Ra1 {[%emt 0:00:12]} Nd5 {[%emt 0:00:28]} 36. Nc4 {[%emt 0:00:25]} Bg5 {[%emt 0:00:45]} 37. Rxa4 {[%emt 0:00:24]} Kh7 {[%emt 0:00:02]} 38. Bd6 {[%emt 0:00:27]} Nf6 {[%emt 0:00:23]} 39. Ra7 {[%emt 0:00:50]} Kg6 {[%emt 0:01:26]} 40. Ne5+ {[%emt 0:00:00]} Kf5 {[%emt 0:00:00]} 41. Nd3 {[%emt 0:05:19]} Ne4 {[%emt 0:23:20]} 42. Bxc5 {[%emt 0:00:56]} f6 {[%emt 0:00:44]} 43. Bb6 {[%emt 0:01:10]} Nd6 {[%emt 0:01:01]} 44. Ra5+ {[%emt 0:02:02]} Kg6 {[%emt 0:00:08]} 45. Ra4 {[%emt 0:01:27]} Kf5 {[%emt 0:00:12]} 46. g4+ {[%emt 0:00:11]} Kg6 {[%emt 0:00:01]} 47. f4 {[%emt 0:00:10]} 1-0

[Event "WYCC 2018 O16"]
[Site "Halkidiki"]
[Date "2018.10.20"]
[Round "1"]
[White "Koustav Chatterjee"]
[Black "Pena Cifuentes, Tomas Alberto"]
[Result "1-0"]
[ECO "A06"]
[WhiteElo "2344"]
[BlackElo "1952"]
[Annotator "NA"]
[PlyCount "67"]
[EventDate "2018.10.20"]
[EventType "swiss"]
[EventCountry "GRE"]
[SourceTitle "playchess.com"]
[Source "ChessBase"]
[SourceQuality "1"]
[TimeControl "40/5400+30:1800+30"]

1. Nf3 {[%emt 0:00:00]} d5 {[%emt 0:00:00]} 2. e3 {[%emt 0:00:25]} Nf6 {[%emt 0:00:05]} 3. c4 {[%emt 0:00:07]} e6 {[%emt 0:00:33]} 4. b3 {[%emt 0:00:13]} c5 {[%emt 0:01:25]} 5. Bb2 {[%emt 0:00:06]} Nc6 {[%emt 0:00:26]} 6. cxd5 {[%emt 0:00:17]} exd5 {[%emt 0:00:41]} 7. Be2 {[%emt 0:00:06]} Bd6 {[%emt 0:02:02]} 8. O-O {[%emt 0:00:36]} O-O {[%emt 0:00:17]} 9. d4 {[%emt 0:00:22]} Bg4 {[%emt 0:13:27]} 10. dxc5 {[%emt 0:00:55]} Bxc5 {[%emt 0:00:09]} 11. Nc3 {[%emt 0:00:04]} a6 {[%emt 0:01:27]} 12. h3 {[%emt 0:00:24] LiveBook: 5 Games} Bh5 {[%emt 0:02:12]} 13. Rc1 {[%emt 0:00:15]} Ba7 {[%emt 0:00:47]} 14. Nh4 {[%emt 0:01:03]} Bxe2 {[%emt 0:11:14]} 15. Nxe2 {[%emt 0:00:17]} Re8 {[%emt 0:02:57]} 16. Nf5 $14 {[%emt 0:05:46]} Ne5 {[%emt 0:01:15]} 17. Qc2 {[%emt 0:06:20]} Ne4 {[%emt 0:06:14]} 18. Rfd1 {[%emt 0:12:41]} Qg5 {[%emt 0:03:58]} 19. Nfd4 {[%emt 0:04:26]} Qh4 {[%emt 0:16:03]} 20. Nf4 {[%emt 0:05:01]} Rad8 {[%emt 0:06:09]} 21. Nf5 {[%emt 0:11:11]} Qg5 {[%emt 0:05:58]} 22. Nxd5 {[%emt 0:03:44]} Nf3+ {[%emt 0:06:05]} 23. Kh1 {[%emt 0:03:26]} Bc5 {[%emt 0:09:59]} 24. Nde7+ {[%emt 0:15:57]} Bxe7 {[%emt 0:00:41]} 25. Qxe4 {[%emt 0:00:07]} Nd2 {[%emt 0:03:32]} 26. Nxe7+ {[%emt 0:01:35]} Rxe7 {[%emt 0:01:26]} 27. Qc2 {[%emt 0:00:08]} Red7 {[%emt 0:00:29]} 28. Bd4 {[%emt 0:00:05]} Nf3 {[%emt 0:01:44]} 29. gxf3 {[%emt 0:00:46]} Qh5 {[%emt 0:00:15]} 30. Kh2 {[%emt 0:00:09]} Qxf3 {[%emt 0:00:32]} 31. Rg1 {[%emt 0:00:04]} f5 {[%emt 0:02:06]} 32. Rg3 {[%emt 0:00:21]} Qh5 {[%emt 0:00:23]} 33. Qc4+ {[%emt 0:00:04]} Kh8 {[%emt 0:00:58]} 34. Rcg1 {[%emt 0:00:14]} 1-0

[Event "WYCC 2018 O16"]
[Site "Halkidiki"]
[Date "2018.10.20"]
[Round "1"]
[White "Guerra Rivera, Salvador"]
[Black "Lin, Kerry"]
[Result "1-0"]
[ECO "B40"]
[WhiteElo "2340"]
[BlackElo "1931"]
[Annotator "NA"]
[PlyCount "69"]
[EventDate "2018.10.20"]
[EventType "swiss"]
[EventCountry "GRE"]
[SourceTitle "playchess.com"]
[Source "ChessBase"]
[SourceQuality "1"]
[TimeControl "40/5400+30:1800+30"]

1. e4 {[%emt 0:00:00]} c5 {[%emt 0:00:00]} 2. Nf3 {[%emt 0:00:08]} e6 {[%emt 0:00:00]} 3. d4 {[%emt 0:00:26]} cxd4 {[%emt 0:00:03]} 4. Nxd4 {[%emt 0:00:10]} Nf6 {[%emt 0:00:06]} 5. Nc3 {[%emt 0:00:32]} Nc6 {[%emt 0:00:08]} 6. Ndb5 {[%emt 0:01:06]} Bb4 {[%emt 0:00:53]} 7. a3 {[%emt 0:02:20]} Bxc3+ {[%emt 0:00:30]} 8. Nxc3 {[%emt 0:00:07]} d5 {[%emt 0:00:07]} 9. Bd3 {[%emt 0:00:50]} O-O {[%emt 0:04:39]} 10. O-O {[%emt 0:09:49]} d4 {[%emt 0:10:40]} 11. Ne2 {[%emt 0:01:02]} e5 {[%emt 0:09:08]} 12. h3 $11 {[%emt 0:03:40]} Qb6 {[%emt 0:08:25]} 13. b4 {[%emt 0:14:58]} Re8 {[%emt 0:18:31]} 14. Ng3 {[%emt 0:01:53]} Be6 {[%emt 0:08:01]} 15. f4 {[%emt 0:14:46]} exf4 {[%emt 0:00:19]} 16. Bxf4 {[%emt 0:00:30]} Ne7 {[%emt 0:07:22]} 17. Bg5 {[%emt 0:19:35]} Nd7 {[%emt 0:03:03]} 18. h4 {[%emt 0:01:06]} Ne5 {[%emt 0:04:01]} 19. h5 {[%emt 0:00:48]} h6 {[%emt 0:03:26]} 20. Bf4 {[%emt 0:01:17]} N7c6 {[%emt 0:03:45]} 21. b5 {[%emt 0:08:58]} Nxd3 {[%emt 0:01:22]} 22. Qxd3 {[%emt 0:00:11]} Na5 {[%emt 0:01:59]} 23. Nf5 {[%emt 0:00:09]} Bxf5 {[%emt 0:01:10]} 24. exf5 {[%emt 0:00:04]} Rac8 {[%emt 0:03:39]} 25. Rae1 {[%emt 0:06:46]} Red8 {[%emt 0:05:24]} 26. Rf2 {[%emt 0:02:02]} Rc3 {[%emt 0:02:04]} 27. Qe4 {[%emt 0:00:14]} Rc4 {[%emt 0:02:16]} 28. Qe7 {[%emt 0:03:31]} Rdc8 {[%emt 0:00:59]} 29. Bd6 {[%emt 0:04:17]} Qxb5 {[%emt 0:01:25]} 30. f6 {[%emt 0:00:16]} Qxh5 {[%emt 0:00:52]} 31. fxg7 {[%emt 0:00:06]} Kxg7 {[%emt 0:00:26]} 32. Be5+ {[%emt 0:01:10]} Kg8 {[%emt 0:00:43]} 33. Qf6 {[%emt 0:00:43]} Kf8 {[%emt 0:00:27]} 34. Bxd4 {[%emt 0:00:41]} Rxd4 {[%emt 0:00:35]} 35. Qh8# {[%emt 0:00:05]} 1-0

[Event "WYCC 2018 O16"]
[Site "Halkidiki"]
[Date "2018.10.20"]
[Round "1"]
[White "Morgunov, Daniel"]
[Black "Hafstad, Leif"]
[Result "1-0"]
[ECO "C06"]
[WhiteElo "2328"]
[BlackElo "1928"]
[Annotator "NA"]
[PlyCount "75"]
[EventDate "2018.10.20"]
[EventType "swiss"]
[EventCountry "GRE"]
[SourceTitle "playchess.com"]
[Source "ChessBase"]
[SourceQuality "1"]
[TimeControl "40/5400+30:1800+30"]

1. e4 {[%emt 0:00:00]} e6 {[%emt 0:00:00]} 2. d4 {[%emt 0:00:00]} d5 {[%emt 0:00:00]} 3. Nd2 {[%emt 0:00:00]} Nf6 {[%emt 0:00:14]} 4. e5 {[%emt 0:00:00]} Nfd7 {[%emt 0:00:24]} 5. Bd3 {[%emt 0:00:00]} c5 {[%emt 0:00:20]} 6. c3 {[%emt 0:00:00]} Nc6 {[%emt 0:00:11]} 7. Ne2 {[%emt 0:00:05]} cxd4 {[%emt 0:00:17]} 8. cxd4 {[%emt 0:00:04]} f6 {[%emt 0:00:38]} 9. exf6 {[%emt 0:00:10]} Nxf6 {[%emt 0:00:14]} 10. O-O {[%emt 0:00:19]} Bd6 {[%emt 0:00:24]} 11. Nf3 {[%emt 0:00:05]} Qc7 {[%emt 0:00:23]} 12. Bg5 {[%emt 0:07:30]} O-O {[%emt 0:00:33]} 13. Bh4 {[%emt 0:01:33]} Nh5 {[%emt 0:03:05]} 14. Qc2 {[%emt 0:13:31]} h6 {[%emt 0:01:25]} 15. Rfe1 {[%emt 0:03:07] C06: French Tarrasch: 3...Nf6 4 e5 Nfd7 5 Bd3 main lines} (15. Bh7+ Kh8 16. Bg6 Nf4 17. Nxf4 Rxf4 18. Bg3 Rxf3 19. gxf3 Qe7 20. Rad1 Bd7 21. Qc3 Rf8 22. Bb1 Kg8 {1-0 (41) Artemiev,V (2653)-Onischuk,V (2615) Martuni 2016}) 15... Rxf3 $146 {[%emt 0:19:47]} ({Predecessor:} 15... Bd7 16. Rac1 Rxf3 17. gxf3 Bxh2+ 18. Kh1 Rf8 19. Be7 Rxf3 20. Kg2 Nf4+ 21. Kxf3 Be8 22. Nxf4 Nxd4+ {0-1 (22) Lauer,F (1124)-Pepermans,T (2361) LSS email 2013}) 16. gxf3 {[%emt 0:00:55]} Bxh2+ {[%emt 0:01:48]} 17. Kg2 {[%emt 0:01:20]} Nf4+ {[%emt 0:12:50]} 18. Nxf4 {[%emt 0:06:30]} Qxf4 {[%emt 0:09:15]} 19. Bh7+ {[%emt 0:06:34]} Kh8 {[%emt 0:01:55]} 20. Bg3 {[%emt 0:00:57]} Bxg3 {[%emt 0:02:09]} 21. fxg3 {[%emt 0:00:09]} Qxd4 {[%emt 0:02:57]} 22. Rad1 {[%emt 0:02:11]} Qf6 {[%emt 0:01:46]} 23. Bg6 $11 {[%emt 0:17:30]} Bd7 {[%emt 0:03:37]} 24. Bh5 {[%emt 0:03:55]} Rc8 {[%emt 0:03:34]} 25. Qd2 {[%emt 0:05:54]} Ne5 {[%emt 0:20:00]} 26. Qe2 {[%emt 0:03:47]} Nc4 {[%emt 0:02:26]} 27. b3 {[%emt 0:01:42]} Nd6 {[%emt 0:00:59]} 28. Bg4 {[%emt 0:03:51]} Nf5 {[%emt 0:01:01]} 29. Rc1 {[%emt 0:07:06]} Re8 {[%emt 0:02:30]} 30. Bxf5 {[%emt 0:02:07]} Qxf5 {[%emt 0:01:18]} 31. Qe5 {[%emt 0:00:55]} Qxe5 {[%emt 0:02:19]} 32. Rxe5 {[%emt 0:00:05]} Kg8 {[%emt 0:02:46]} 33. Kf2 {[%emt 0:01:05]} Bc6 {[%emt 0:00:58]} 34. f4 {[%emt 0:03:03]} Kf7 {[%emt 0:01:34]} 35. Ke3 {[%emt 0:00:25]} Ke7 {[%emt 0:01:08]} 36. Kd4 {[%emt 0:00:50]} Kd6 {[%emt 0:00:48]} 37. f5 {[%emt 0:03:53]} exf5 {[%emt 0:00:59]} 38. Rxc6+ {[%emt 0:00:24]} 1-0

[Event "WYCC 2018 O16"]
[Site "Halkidiki"]
[Date "2018.10.20"]
[Round "1"]
[White "Golikov, Daniil"]
[Black "Carroll, Peter"]
[Result "1-0"]
[ECO "E73"]
[WhiteElo "2319"]
[BlackElo "1917"]
[Annotator "NA"]
[PlyCount "73"]
[EventDate "2018.10.20"]
[EventType "swiss"]
[EventCountry "GRE"]
[SourceTitle "playchess.com"]
[Source "ChessBase"]
[SourceQuality "1"]
[TimeControl "40/5400+30:1800+30"]

1. d4 {[%emt 0:00:00]} Nf6 {[%emt 0:00:00]} 2. c4 {[%emt 0:00:00]} g6 {[%emt 0:00:00]} 3. Nc3 {[%emt 0:00:00]} Bg7 {[%emt 0:00:00]} 4. e4 {[%emt 0:00:10]} O-O {[%emt 0:00:00]} 5. Be2 {[%emt 0:00:03]} d6 {[%emt 0:00:00]} 6. Bg5 {[%emt 0:00:04]} c5 {[%emt 0:00:00]} 7. d5 {[%emt 0:00:19]} e6 {[%emt 0:00:00]} 8. Nf3 {[%emt 0:10:34]} h6 {[%emt 0:10:19]} 9. Bf4 {[%emt 0:02:46]} exd5 {[%emt 0:03:14]} 10. cxd5 {[%emt 0:02:21]} Re8 {[%emt 0:06:23]} 11. Nd2 {[%emt 0:00:13]} a6 {[%emt 0:02:49]} 12. a4 {[%emt 0:00:03]} Qe7 {[%emt 0:06:06]} 13. a5 {[%emt 0:09:58]} Nbd7 {[%emt 0:00:49]} 14. O-O {[%emt 0:00:15]} Ne5 {[%emt 0:04:18]} 15. h3 {[%emt 0:05:42]} Nfd7 {[%emt 0:04:08]} 16. Qc2 {[%emt 0:03:05]} Rf8 {[%emt 0:11:49]} 17. Bg3 {[%emt 0:00:52]} g5 {[%emt 0:03:06]} 18. Nd1 {[%emt 0:05:44]} Ng6 {[%emt 0:04:52]} 19. Ne3 {[%emt 0:05:09]} Nde5 {[%emt 0:10:24]} 20. Rfe1 {[%emt 0:08:13]} Nf4 {[%emt 0:07:17]} 21. Bf1 {[%emt 0:00:33]} f5 {[%emt 0:03:25]} 22. Bxf4 {[%emt 0:08:11]} gxf4 {[%emt 0:01:55]} 23. Nxf5 {[%emt 0:00:04]} Bxf5 {[%emt 0:00:07]} 24. exf5 {[%emt 0:00:04]} Qf7 {[%emt 0:04:50]} 25. Ne4 {[%emt 0:09:13]} Qxf5 {[%emt 0:01:28]} 26. Qb3 {[%emt 0:01:06]} Qg6 {[%emt 0:01:36]} 27. Kh1 {[%emt 0:00:27]} f3 {[%emt 0:04:27]} 28. g3 {[%emt 0:00:47]} h5 {[%emt 0:04:09]} 29. Qxb7 {[%emt 0:14:21]} Rfb8 {[%emt 0:04:49]} 30. Qe7 {[%emt 0:00:20]} Rxb2 {[%emt 0:00:47]} 31. Nxd6 {[%emt 0:04:57]} Rxf2 {[%emt 0:01:52]} 32. Rxe5 {[%emt 0:00:02]} Bxe5 {[%emt 0:00:30]} 33. Qxe5 {[%emt 0:00:01]} Rd8 {[%emt 0:00:30]} 34. Ne4 {[%emt 0:00:33]} Rc2 {[%emt 0:00:30]} 35. Nf6+ {[%emt 0:01:25]} Kf8 {[%emt 0:00:26]} 36. Re1 {[%emt 0:00:09]} Qf7 {[%emt 0:00:23]} 37. Nh7+ {[%emt 0:01:56]} 1-0

[Event "WYCC 2018 O16"]
[Site "Halkidiki"]
[Date "2018.10.20"]
[Round "1"]
[White "Ongut, Tamas Gunes"]
[Black "Sargsyan, Shant"]
[Result "0-1"]
[ECO "C92"]
[WhiteElo "2185"]
[BlackElo "2463"]
[Annotator "RC"]
[PlyCount "80"]
[EventDate "2018.10.20"]
[EventType "swiss"]
[EventCountry "GRE"]
[SourceTitle "playchess.com"]
[Source "ChessBase"]
[SourceQuality "1"]
[TimeControl "40/5400+30:1800+30"]

1. e4 {[%emt 0:00:00]} e5 {[%emt 0:00:31]} 2. Nf3 {[%emt 0:00:00]} Nc6 {[%emt 0:00:13]} 3. Bb5 {[%emt 0:00:00]} a6 {[%emt 0:00:23]} 4. Ba4 {[%emt 0:00:03]} Nf6 {[%emt 0:00:27]} 5. O-O {[%emt 0:00:10]} Be7 {[%emt 0:00:35]} 6. Re1 {[%emt 0:00:09]} b5 {[%emt 0:00:32]} 7. Bb3 {[%emt 0:00:08]} d6 {[%emt 0:00:23]} 8. c3 {[%emt 0:00:08]} O-O {[%emt 0:00:24]} 9. h3 {[%emt 0:00:07]} Re8 {[%emt 0:00:39]} 10. d4 {[%emt 0:01:18]} Bf8 {[%emt 0:00:35]} 11. Nbd2 {[%emt 0:00:11]} Bb7 {[%emt 0:00:17]} 12. a4 {[%emt 0:00:10]} h6 {[%emt 0:01:25]} 13. Bc2 {[%emt 0:00:17]} exd4 {[%emt 0:01:47]} 14. cxd4 {[%emt 0:00:08]} Nb4 {[%emt 0:00:43]} 15. Bb1 {[%emt 0:00:08]} c5 {[%emt 0:00:39]} 16. d5 {[%emt 0:00:10]} Nd7 {[%emt 0:01:09]} 17. Ra3 {[%emt 0:00:09]} c4 {[%emt 0:01:34]} 18. Rae3 {[%emt 0:06:31]} Nc5 {[%emt 0:04:50]} 19. b3 {[%emt 0:03:30]} Ncd3 {[%emt 0:13:12]} 20. Rf1 {[%emt 0:05:12]} f5 {[%emt 0:05:56]} 21. bxc4 {[%emt 0:19:40]} bxc4 {[%emt 0:01:40]} 22. exf5 {[%emt 0:38:01]} Bxd5 {[%emt 0:02:35]} 23. Nb3 {[%emt 0:03:48]} Qf6 {[%emt 0:05:41]} 24. Nbd4 {[%emt 0:03:14]} Bxf3 {[%emt 0:04:49]} 25. Nxf3 {[%emt 0:00:08]} d5 {[%emt 0:01:09]} 26. Rxe8 {[%emt 0:03:01]} Rxe8 {[%emt 0:03:03]} 27. Be3 {[%emt 0:00:06]} Bd6 {[%emt 0:07:51]} 28. Bxd3 {[%emt 0:09:11]} Nxd3 {[%emt 0:00:49]} 29. Nd4 {[%emt 0:00:10]} Re4 {[%emt 0:02:44]} 30. Qh5 {[%emt 0:01:52]} Rxd4 {[%emt 0:11:41]} 31. Qe8+ {[%emt 0:00:08]} Bf8 {[%emt 0:00:10]} 32. Bxd4 {[%emt 0:00:07]} Qxd4 {[%emt 0:00:03]} 33. Qe6+ {[%emt 0:00:09]} Kh8 {[%emt 0:00:20]} 34. Qxa6 {[%emt 0:01:35]} Nxf2 {[%emt 0:02:45]} 35. Rxf2 {[%emt 0:03:19]} Bc5 {[%emt 0:00:31]} 36. Qc8+ {[%emt 0:00:44]} Kh7 {[%emt 0:00:02]} 37. Qe6 {[%emt 0:00:52]} Qxf2+ {[%emt 0:00:07]} 38. Kh2 {[%emt 0:00:04]} Qg1+ {[%emt 0:00:20]} 39. Kg3 {[%emt 0:00:02]} Qe3+ {[%emt 0:00:06]} 40. Qxe3 {[%emt 0:00:00]} Bxe3 {[%emt 0:00:00]} 0-1

[Event "WYCC 2018 O16"]
[Site "Halkidiki"]
[Date "2018.10.20"]
[Round "1"]
[White "Beukes, Dante M"]
[Black "Vrolijk, Liam"]
[Result "0-1"]
[ECO "C50"]
[WhiteElo "2155"]
[BlackElo "2437"]
[Annotator "ChessBase"]
[PlyCount "70"]
[EventDate "2018.10.20"]
[EventType "swiss"]
[EventCountry "GRE"]
[SourceTitle "playchess.com"]
[Source "ChessBase"]
[SourceQuality "1"]
[TimeControl "40/5400+30:1800+30"]

1. e4 {[%emt 0:00:00]} e5 {[%emt 0:00:00]} 2. Nf3 {[%emt 0:00:00]} Nc6 {[%emt 0:00:00]} 3. Bc4 {[%emt 0:00:00]} Bc5 {[%emt 0:00:00]} 4. O-O {[%emt 0:00:00]} Nf6 {[%emt 0:00:00]} 5. d3 {[%emt 0:00:00]} O-O {[%emt 0:00:13]} 6. c3 {[%emt 0:00:08]} d6 {[%emt 0:00:13]} 7. h3 {[%emt 0:00:50]} h6 {[%emt 0:01:01]} 8. Re1 {[%emt 0:00:35]} a5 {[%emt 0:00:47]} 9. a4 {[%emt 0:01:22]} Be6 {[%emt 0:02:50]} 10. Nbd2 {[%emt 0:01:48]} Qd7 {[%emt 0:08:44]} 11. Bxe6 {[%emt 0:04:03]} fxe6 {[%emt 0:01:17]} 12. Nf1 {[%emt 0:02:31]} Nh5 {[%emt 0:07:23]} 13. Be3 {[%emt 0:05:18]} Nf4 {[%emt 0:06:12]} 14. N1h2 {[%emt 0:11:27]} Rad8 {[%emt 0:04:07]} 15. g3 {[%emt 0:08:15]} Bxe3 {[%emt 0:11:29]} 16. Rxe3 {[%emt 0:00:43]} Ng6 {[%emt 0:02:15]} 17. d4 {[%emt 0:17:33]} exd4 {[%emt 0:03:58]} 18. Nxd4 {[%emt 0:00:48]} e5 {[%emt 0:09:27]} 19. Qb3+ {[%emt 0:06:26]} Rf7 {[%emt 0:03:38]} 20. Nf5 {[%emt 0:04:50]} Kh7 {[%emt 0:04:17]} 21. Re2 {[%emt 0:14:32]} b6 {[%emt 0:04:37]} 22. Nf1 {[%emt 0:03:27]} Nf8 {[%emt 0:02:22]} 23. Qb5 {[%emt 0:04:51]} Ne6 {[%emt 0:03:08]} 24. Nd2 {[%emt 0:04:03]} Ng5 {[%emt 0:08:30]} 25. Kg2 {[%emt 0:04:23]} g6 {[%emt 0:02:31]} 26. h4 {[%emt 0:00:20]} Nxe4 {[%emt 0:03:07]} 27. Nxh6 {[%emt 0:01:14]} Rxf2+ {[%emt 0:01:43]} 28. Rxf2 {[%emt 0:00:58]} Nxf2 {[%emt 0:00:03]} 29. Rf1 {[%emt 0:02:20]} Rf8 {[%emt 0:00:18]} 30. Rxf2 {[%emt 0:00:36]} Rxf2+ {[%emt 0:00:08]} 31. Kxf2 {[%emt 0:00:05]} Kxh6 {[%emt 0:00:07]} 32. Nf3 {[%emt 0:01:14]} d5 {[%emt 0:02:28]} 33. Ng5 {[%emt 0:00:38]} e4 {[%emt 0:02:12]} 34. Qa6 {[%emt 0:01:01]} Ne5 {[%emt 0:02:08]} 35. Qe2 {[%emt 0:00:39]} Qxa4 {[%emt 0:02:04]} 0-1

[Event "WYCC 2018 O16"]
[Site "Halkidiki"]
[Date "2018.10.20"]
[Round "1"]
[White "Kovacsy, Barnabas"]
[Black "Kaasen, Tor Fredrik"]
[Result "0-1"]
[ECO "B63"]
[WhiteElo "2104"]
[BlackElo "2388"]
[Annotator "NA"]
[PlyCount "62"]
[EventDate "2018.10.20"]
[EventType "swiss"]
[EventCountry "GRE"]
[SourceTitle "playchess.com"]
[Source "ChessBase"]
[SourceQuality "1"]
[TimeControl "40/5400+30:1800+30"]

1. e4 {[%emt 0:00:00]} c5 {[%emt 0:00:03]} 2. Nf3 {[%emt 0:00:00]} d6 {[%emt 0:00:22]} 3. d4 {[%emt 0:00:00]} cxd4 {[%emt 0:00:09]} 4. Nxd4 {[%emt 0:00:00]} Nf6 {[%emt 0:00:15]} 5. Nc3 {[%emt 0:00:00]} Nc6 {[%emt 0:00:07]} 6. Bg5 {[%emt 0:00:41]} e6 {[%emt 0:00:26]} 7. Qd2 {[%emt 0:01:09]} Be7 {[%emt 0:00:11]} 8. O-O-O {[%emt 0:01:03]} Nxd4 {[%emt 0:00:14]} 9. Qxd4 {[%emt 0:00:08]} a6 {[%emt 0:00:06]} 10. f4 {[%emt 0:05:55]} b5 {[%emt 0:00:24]} 11. Bxf6 {[%emt 0:07:51]} gxf6 {[%emt 0:00:12]} 12. Be2 {[%emt 0:00:13]} Rb8 {[%emt 0:00:33]} 13. a3 {[%emt 0:07:42]} Bd7 {[%emt 0:05:40]} 14. Bh5 {[%emt 0:11:29]} Qb6 $11 {[%emt 0:03:31]} 15. Qxb6 {[%emt 0:09:15]} Rxb6 {[%emt 0:00:11]} 16. Rd3 {[%emt 0:00:21]} O-O {[%emt 0:05:24]} 17. h4 {[%emt 0:07:21]} a5 {[%emt 0:03:23]} 18. Bf3 {[%emt 0:10:49]} b4 {[%emt 0:05:00]} 19. Nb1 {[%emt 0:00:45]} Rfb8 {[%emt 0:05:41]} 20. b3 {[%emt 0:01:40]} a4 {[%emt 0:03:05]} 21. axb4 {[%emt 0:00:55]} Rxb4 {[%emt 0:00:12]} 22. Nd2 {[%emt 0:02:55]} Rc8 {[%emt 0:09:39]} 23. Kb2 {[%emt 0:01:08]} f5 {[%emt 0:02:54]} 24. g3 {[%emt 0:14:23]} fxe4 {[%emt 0:03:25]} 25. Nxe4 {[%emt 0:02:05]} d5 {[%emt 0:00:20]} 26. Nd2 {[%emt 0:00:07]} a3+ {[%emt 0:02:39]} 27. Kb1 {[%emt 0:00:47]} Bb5 {[%emt 0:00:25]} 28. Re3 {[%emt 0:00:27]} Bf6 {[%emt 0:00:09]} 29. Re5 {[%emt 0:01:04]} Bxe5 {[%emt 0:00:34]} 30. fxe5 {[%emt 0:00:02]} Rd4 {[%emt 0:00:06]} 31. Rh2 {[%emt 0:01:21]} a2+ {[%emt 0:00:15]} 0-1